bitfinex-derivatives/quotes_ETHF0:USTF0_20250524
["timestamp","ask_amount","ask_price","bid_price","bid_amount"]
[1748047469620,18.9625,2532.4,2532.3,2.07505]
[1748047469919,35.331,2532.4,2532.3,2.07505]
[1748047470414,17.566,2532.6,2532.5,0.78959]
[1748047471517,17.566,2532.6,2532.3,4.4932]
[1748047471721,17.566,2532.6,2532.3,1.2854]
[1748047472021,0.78962,2532.4,2532.3,1.2854]
[1748047472517,0.78965,2532.3,2532.2,1.20734244]
[1748047472717,2.15995,2532.4,2532.2,0.00394244]
[1748047473017,1.3703,2532.4,2532.2,0.79362244]
[1748047473209,1.3703,2532.4,2532.3,1.2766]
[1748047473623,0.78965,2532.3,2532.2,0.00394244]
[1748047473822,1.97735,2532.3,2532.2,0.00394244]
[1748047474322,5.18515,2532.3,2532.2,0.00394244]
[1748047474824,1.97735,2532.3,2532.2,0.00394244]
[1748047475219,5.18515,2532.3,2532.2,0.00394244]
[1748047475921,11.54615,2532.3,2532.2,0.00394244]
[1748047476329,0.78976,2532.0,2531.7,0.78982]
[1748047476521,37.9501,2531.9,2531.7,0.78982]
[1748047476823,37.9501,2531.9,2531.8,0.78981]
[1748047477423,37.9501,2531.9,2531.7,2.15872]
[1748047477722,0.00591366,2532.1,2531.7,1.3689]
[1748047477926,0.00591366,2532.1,2532.0,0.78974]
[1748047478123,35.34691366,2532.1,2532.0,0.78974]
[1748047479024,35.34691366,2532.1,2532.0,2.17804]
[1748047479526,0.00591366,2532.1,2532.0,2.17804]
[1748047479828,17.57491366,2532.1,2532.0,2.17804]
[1748047480926,17.57491366,2532.1,2532.0,1.3883]
[1748047481329,18.89211366,2532.1,2532.0,1.3883]
[1748047481830,17.57491366,2532.1,2532.0,2.17804]
[1748047482131,0.78974,2532.0,2531.9,1.1937]
[1748047482329,0.78978,2531.9,2531.8,1.2578]
[1748047482530,1.3172,2532.0,2531.8,1.2578]
[1748047482733,0.78978,2531.9,2531.8,1.2578]
[1748047483025,1.3172,2532.0,2531.3,4.77217107]
[1748047483026,1.97455,2531.8,2531.3,4.77217107]
[1748047483229,0.78999,2531.2,2531.1,2.31212724]
[1748047483422,36.07699,2531.2,2531.1,1.56437128]
[1748047483831,37.37249,2531.2,2531.1,1.56437128]
[1748047484020,36.5835,2531.2,2531.1,1.56437128]
[1748047484229,37.37349,2531.2,2531.1,1.56437128]
[1748047485829,0.79006,2531.0,2530.7,1.4024]
[1748047486133,2.08561,2530.9,2530.7,1.4024]
[1748047486431,17.515,2530.8,2530.7,2.19255]
[1748047486630,18.8105,2530.8,2530.7,2.19255]
[1748047488031,18.8105,2530.8,2530.7,1.4024]
[1748047488235,18.8105,2530.8,2530.5,1.3052]
[1748047488529,18.8105,2530.8,2530.7,3.99795]
[1748047488734,18.8105,2530.8,2530.7,3.2078]
[1748047489029,19.60062,2530.8,2530.7,3.2078]
[1748047489229,0.79021,2530.5,2530.4,3.2078]
[1748047489440,18.56721,2530.5,2530.4,3.2078]
[1748047489635,17.777,2530.5,2530.4,3.2078]
[1748047490331,17.777,2530.5,2530.4,4.5862]
[1748047491636,19.1364,2530.5,2530.4,4.5862]
[1748047491938,0.00592546,2530.7,2530.6,0.79018]
[1748047492437,35.30492546,2530.7,2530.6,0.79018]
[1748047492644,35.30492546,2530.7,2530.6,3.38168]
[1748047494638,35.30792546,2530.7,2530.6,3.38168]
[1748047494841,35.30792546,2530.7,2530.6,1.3784]
[1748047495340,35.30792546,2530.7,2530.4,3.2078]
[1748047495643,37.48819546,2530.7,2530.5,1.2987]
[1748047495843,38.63758546,2530.7,2530.5,1.2987]
[1748047496040,37.84742546,2530.7,2530.5,2.08891]
[1748047496342,38.63758546,2530.7,2530.5,1.2987]
[1748047496536,37.84742546,2530.7,2530.5,1.2987]
[1748047496847,38.63757546,2530.7,2530.5,1.2987]
[1748047497142,35.304,2530.6,2530.5,1.2987]
[1748047497337,2.54542546,2530.7,2530.5,1.2987]
[1748047497642,0.00592546,2530.7,2530.6,0.79018]
[1748047497942,36.10008546,2530.7,2530.5,1.2987]
[1748047498333,1.3418,2530.6,2530.5,1.2987]
[1748047499151,2.13198,2530.6,2530.5,1.2987]
[1748047499356,1.3418,2530.6,2530.5,1.2987]
[1748047499850,2.13198,2530.6,2530.4,3.2078]
[1748047500051,2.4975,2530.6,2530.4,3.99804]
[1748047500252,2.4975,2530.6,2530.4,5.34854]
[1748047500451,0.00592546,2530.7,2530.6,0.79018]
[1748047500754,6.90375,2531.6,2530.6,0.79018]
[1748047500755,17.523,2530.9,2530.6,0.79018]
[1748047500942,17.523,2531.0,2530.9,0.79009]
[1748047501148,17.523,2531.0,2530.9,3.38149]
[1748047501452,17.523,2531.0,2530.9,8.38149]
[1748047502344,17.523,2531.0,2530.9,9.57047328]
[1748047503154,18.31305,2531.0,2530.9,3.78038328]
[1748047503350,18.31305,2531.0,2530.9,1.18898328]
[1748047503745,19.60305,2531.0,2530.9,1.18898328]
[1748047504448,0.79012,2530.9,2530.7,1.29132546]
[1748047504756,2.08012,2530.8,2530.7,0.00592546]
[1748047506254,1.29,2530.8,2530.7,0.00592546]
[1748047506947,2.08012,2530.8,2530.7,0.00592546]
[1748047507149,1.29,2530.8,2530.7,0.00592546]
[1748047507550,2.08012,2530.8,2530.7,0.00592546]
[1748047508059,1.29,2530.8,2530.7,0.00592546]
[1748047508355,1.29,2530.8,2530.7,0.79607546]
[1748047508857,36.596,2530.8,2530.7,0.79607546]
[1748047509058,35.306,2530.8,2530.7,0.79607546]
[1748047509351,4.43483,2531.1,2530.8,0.7901]
[1748047509555,35.306,2531.0,2530.9,0.79009]
[1748047509856,0.00592546,2531.2,2531.0,0.79005]
[1748047510056,35.306,2531.1,2531.0,0.79005]
[1748047510257,0.79009,2530.9,2530.8,3.2078]
[1748047510557,36.04509,2530.9,2530.8,3.2078]
[1748047513159,35.255,2530.9,2530.8,3.2078]
[1748047513361,35.255,2530.9,2530.8,3.99792]
[1748047513658,1.30042546,2531.2,2531.1,0.79002]
[1748047513849,37.34542546,2531.2,2530.8,6.8895]
[1748047514160,2.09042546,2531.2,2531.0,0.79005]
[1748047514361,35.255,2531.1,2531.0,0.79005]
[1748047514552,1.30042546,2531.2,2531.0,0.79005]
[1748047514753,35.255,2531.1,2531.0,0.79005]
[1748047514954,35.255,2531.1,2531.0,2.07175]
[1748047515155,36.6687,2531.1,2531.0,2.07175]
[1748047515760,0.00592546,2531.2,2531.1,0.79002]
[1748047515958,17.47792546,2531.2,2531.1,3.99782]
[1748047518260,17.47792546,2531.2,2531.1,5.19171622]
[1748047519464,17.47792546,2531.2,2531.1,4.40169622]
[1748047519957,17.47792546,2531.2,2531.1,5.19171622]
[1748047521762,17.47792546,2531.2,2531.1,4.40169622]
[1748047522156,17.47792546,2531.2,2531.1,5.19171622]
[1748047522565,17.47692546,2531.2,2531.1,5.19171622]
[1748047522864,0.00592546,2531.2,2531.1,5.19171622]
[1748047523061,17.47692546,2531.2,2531.1,5.19171622]
[1748047523664,0.00592546,2531.2,2531.1,10.19171622]
[1748047523864,17.47692546,2531.2,2531.1,10.19171622]
[1748047524064,0.00592546,2531.2,2531.1,10.19171622]
[1748047524265,17.47692546,2531.2,2531.1,10.19171622]
[1748047524465,17.47692546,2531.2,2531.1,5.19171622]
[1748047524964,0.00592546,2531.2,2531.1,5.19171622]
[1748047525469,17.47692546,2531.2,2531.1,5.19171622]
[1748047525966,36.04791546,2531.2,2531.1,4.40169622]
[1748047526271,44.25571546,2531.2,2531.1,1.19389622]
[1748047526660,46.39601546,2531.2,2531.1,1.19389622]
[1748047527357,46.39601546,2531.2,2531.0,1.17745995]
[1748047527358,0.79002,2531.1,2531.0,1.17745995]
[1748047527562,0.79002,2531.1,2530.7,0.00592546]
[1748047527563,1.381,2531.1,2530.7,0.00592546]
[1748047527766,0.79012,2530.8,2530.7,0.00592546]
[1748047527963,18.26012,2530.8,2530.7,0.00592546]
[1748047528671,0.79024,2530.4,2530.3,1.17745995]
[1748047528973,36.04324,2530.4,2530.3,1.17745995]
[1748047529262,0.79034,2530.1,2530.0,2.31212724]
[1748047529458,0.7904,2529.9,2529.8,1.17697262]
[1748047529657,21.4692,2529.9,2529.8,1.17697262]
[1748047530063,22.592,2529.9,2529.8,1.17697262]
[1748047530269,19.3842,2529.9,2529.8,1.17697262]
[1748047530672,36.3758,2529.9,2529.8,1.96740262]
[1748047530974,1.3442,2530.0,2529.9,0.7904]
[1748047531169,1.3442,2530.0,2529.8,1.17697262]
[1748047531170,36.5972,2530.0,2529.8,1.17697262]
[1748047531369,37.38758,2530.0,2529.8,1.17697262]
[1748047531565,0.7904,2529.9,2529.8,1.17697262]
[1748047531766,2.1346,2529.9,2529.8,1.17697262]
[1748047532872,1.3442,2529.9,2529.6,3.2078]
[1748047533371,1.3442,2529.9,2529.3,1.3633]
[1748047533572,0.79046,2529.7,2529.4,0.79054]
[1748047533772,18.8582,2529.6,2529.4,2.17484]
[1748047533972,18.8582,2529.6,2529.4,1.3843]
[1748047534276,18.8582,2529.6,2529.4,2.17483]
[1748047534469,18.8582,2529.6,2529.4,1.3843]
[1748047535074,18.8582,2529.6,2529.5,0.07549626]
[1748047535372,0.00592546,2529.9,2529.5,0.07549626]
[1748047535574,17.48192546,2529.9,2529.8,0.79043]
[1748047536074,17.48192546,2529.9,2529.8,5.79043]
[1748047536269,17.48192546,2529.9,2529.8,7.08083]
[1748047538075,17.48192546,2529.9,2529.8,2.08083]
[1748047538275,17.48192546,2529.9,2529.8,7.08083]
[1748047538475,17.48192546,2529.9,2529.8,2.08083]
[1748047540678,17.48192546,2529.9,2529.8,1.2904]
[1748047541379,18.87692546,2529.9,2529.8,1.2904]
[1748047541580,18.87692546,2529.9,2529.8,2.08083]
[1748047542178,18.87692546,2529.9,2529.6,4.3088]
[1748047542379,18.86910127,2529.9,2529.3,3.2078]
[1748047542679,0.79048,2529.7,2529.3,3.99838]
[1748047542888,1.3588,2529.6,2529.3,5.38948]
[1748047543078,35.215,2529.5,2529.3,5.38948]
[1748047543281,1.3588,2529.4,2529.3,5.38948]
[1748047545977,35.215,2529.5,2529.4,0.79055]
[1748047546282,35.215,2529.5,2529.4,2.13045]
[1748047548180,35.215,2529.5,2529.4,1.3399]
[1748047548779,35.215,2529.5,2529.4,2.13045]
[1748047548982,36.00554,2529.5,2529.3,3.2078]
[1748047549174,1.3178,2529.4,2529.3,3.2078]
[1748047549374,2.3908,2529.4,2529.3,3.2078]
[1748047549982,3.18135,2529.4,2529.3,3.2078]
[1748047550179,0.79062,2529.2,2529.1,0.00592546]
[1748047550380,0.79061,2529.3,2529.2,0.07549626]
[1748047550578,2.10841,2529.3,2529.2,0.07549626]
[1748047551082,1.3178,2529.3,2529.2,3.28329626]
[1748047551272,1.3178,2529.3,2529.2,5.37441626]
[1748047551477,1.3178,2529.3,2529.2,5.29892]
[1748047551779,1.3178,2529.3,2529.2,4.5083]
[1748047551981,2.10838,2529.3,2529.2,3.2078]
[1748047552484,0.79062,2529.2,2529.1,0.00592546]
[1748047552788,2.18162,2529.2,2529.1,0.00592546]
[1748047555392,9.5988,2529.2,2528.5,3.2078]
[1748047555687,1.391,2529.2,2528.8,3.2078]
[1748047555890,1.391,2529.2,2529.0,0.79067]
[1748047556187,35.224,2529.1,2528.9,2.12769]
[1748047556488,1.3587,2529.0,2528.8,3.2078]
[1748047556686,1.3587,2529.0,2528.6,0.79078]
[1748047556687,1.095,2528.9,2528.6,0.79078]
[1748047556987,1.3267,2528.8,2528.5,1.3552]
[1748047557185,17.434,2528.7,2528.6,0.7908]
[1748047557383,17.434,2528.7,2528.6,3.9986]
[1748047557986,1.3267,2529.0,2528.6,3.2078]
[1748047558191,17.793,2529.2,2529.1,0.79065]
[1748047558380,35.227,2529.2,2529.0,0.79067]
[1748047558585,35.227,2529.2,2528.9,3.2078]
[1748047558887,2.4615,2529.3,2529.1,0.79065]
[1748047559089,2.4615,2529.3,2529.2,0.79062]
[1748047559287,17.435,2529.2,2529.1,0.79063]
[1748047559487,36.5547,2529.2,2529.1,0.79063]
[1748047559691,1.3267,2529.2,2529.1,0.79063]
[1748047559888,17.435,2529.2,2529.1,0.79063]
[1748047560992,1.1348,2529.3,2529.2,0.79062]
[1748047561187,1.3893,2529.4,2529.3,0.79058]
[1748047561382,1.3893,2529.4,2529.3,2.18998]
[1748047561689,36.6193,2529.4,2529.3,1.3994]
[1748047561990,36.6193,2529.4,2529.2,3.2078]
[1748047562189,36.6193,2529.4,2529.3,0.79058]
[1748047562592,36.6193,2529.4,2529.3,2.18998]
[1748047562887,1.3893,2529.4,2529.3,2.18998]
[1748047563096,36.6193,2529.4,2529.3,2.18998]
[1748047563593,36.6193,2529.4,2529.2,3.2078]
[1748047563782,36.6193,2529.4,2529.3,0.79058]
[1748047563987,18.8243,2529.4,2529.2,3.99839]
[1748047564399,18.8243,2529.4,2529.2,3.2078]
[1748047564691,18.8243,2529.4,2529.0,0.79067]
[1748047564692,0.79058,2529.3,2529.0,0.79067]
[1748047564887,1.2811,2529.2,2529.0,0.79067]
[1748047565087,1.2811,2529.2,2528.9,0.07549626]
[1748047565288,1.0278,2529.1,2528.9,0.07549626]
[1748047565488,19.7713,2529.0,2528.9,0.07549626]
[1748047565691,19.7713,2529.0,2528.8,0.79073]
[1748047565891,17.795,2528.9,2528.8,0.79073]
[1748047566090,19.1642,2528.9,2528.8,0.79073]
[1748047566499,19.1642,2528.9,2528.8,0.79074]
[1748047566795,19.1642,2528.9,2528.8,0.07549626]
[1748047567000,19.95491,2528.9,2528.8,0.07549626]
[1748047567206,19.1642,2528.9,2528.8,0.07549626]
[1748047567700,19.1642,2528.9,2528.7,3.99855]
[1748047567902,19.1642,2528.9,2528.7,3.2078]
[1748047568395,19.1642,2528.9,2528.7,3.99855]
[1748047568603,19.1642,2528.9,2528.8,0.07549626]
[1748047568802,19.95491,2528.9,2528.8,0.07549626]
[1748047568996,24.95491,2528.9,2528.8,0.07549626]
[1748047569697,2.15991,2528.9,2528.7,3.2078]
[1748047570003,36.02273,2528.8,2528.7,3.2078]
[1748047570208,37.30073,2528.8,2528.7,3.2078]
[1748047570609,1.278,2528.8,2528.7,3.99856]
[1748047570911,36.473,2528.8,2528.7,3.99856]
[1748047571299,1.0552,2529.0,2528.7,3.2078]
[1748047571504,2.36113909,2529.1,2529.0,0.79067]
[1748047571707,37.55713909,2529.1,2529.0,0.79067]
[1748047573305,1.278,2529.3,2529.2,0.7906]
[1748047573508,17.399,2529.1,2529.0,3.99846]
[1748047573708,18.18963,2529.1,2529.0,3.2078]
[1748047574005,18.7003,2529.1,2529.0,3.99846]
[1748047574606,18.7003,2529.1,2529.0,3.2078]
[1748047575307,19.49093,2529.1,2529.0,3.2078]
[1748047575506,0.79076,2528.7,2528.6,3.2078]
[1748047575808,18.18976,2528.7,2528.6,3.2078]
[1748047576907,17.399,2528.7,2528.6,3.2078]
[1748047577102,19.1554,2528.9,2528.8,0.79074]
[1748047577301,35.196,2528.9,2528.7,1.35]
[1748047577503,1.1139,2529.1,2528.7,4.5578]
[1748047577704,35.196,2529.0,2528.9,0.79068]
[1748047578305,35.196,2529.0,2528.8,2.14072]
[1748047578714,0.79074,2528.8,2528.7,3.2078]
[1748047579014,0.79074,2528.8,2528.6,0.79079]
[1748047579305,1.2818,2528.9,2528.5,2.4846]
[1748047579510,35.196,2528.8,2528.5,1.3895]
[1748047579813,36.4798,2528.7,2528.5,1.3895]
[1748047580011,1.2818,2528.7,2528.5,1.3895]
[1748047580212,35.198,2528.6,2528.5,1.3895]
[1748047580406,35.198,2528.6,2528.5,2.18033]
[1748047580712,35.9888,2528.6,2528.5,1.3895]
[1748047581813,35.198,2528.6,2528.5,1.3895]
[1748047582018,35.198,2528.6,2528.5,2.18033]
[1748047582820,35.198,2528.6,2528.5,1.3895]
[1748047582821,35.9888,2528.6,2528.5,1.3895]
[1748047583118,37.3352,2528.6,2528.5,1.3895]
[1748047583315,2.36113909,2529.0,2528.5,1.3895]
[1748047583517,17.401,2528.9,2528.8,3.99854]
[1748047584109,17.401,2528.9,2528.8,3.2078]
[1748047584717,17.401,2528.9,2528.8,3.99854]
[1748047585212,2.36113909,2529.1,2529.0,0.79068]
[1748047585416,19.76213909,2529.1,2529.0,0.79068]
[1748047585605,2.36113909,2529.1,2529.0,5.79068]
[1748047585809,2.36113909,2529.1,2529.0,6.85468]
[1748047586009,17.4,2529.1,2529.0,6.85468]
[1748047586520,2.36113909,2529.5,2529.4,0.79055]
[1748047586721,19.76113909,2529.5,2529.4,3.99835]
[1748047586915,19.76113909,2529.5,2529.4,3.2078]
[1748047587324,19.76113909,2529.5,2529.4,3.99835]
[1748047588621,17.4,2529.5,2529.4,5.17611411]
[1748047593722,17.4,2529.5,2529.4,4.38556411]
[1748047593928,18.19052,2529.5,2529.4,1.17776411]
[1748047594426,19.21982,2529.5,2529.4,1.17776411]
[1748047594814,20.57642,2529.5,2529.4,1.17776411]
[1748047595226,19.7859,2529.5,2529.2,0.7906]
[1748047596527,20.57642,2529.5,2529.1,1.3414]
[1748047596830,18.8504,2529.4,2529.1,2.13203]
[1748047597017,18.8504,2529.4,2529.1,1.3414]
[1748047597215,1.2749,2529.3,2529.2,0.79061]
[1748047597927,36.4669,2529.3,2529.2,0.79061]
[1748047598518,1.2749,2529.3,2529.2,0.79061]
[1748047598719,36.4649,2529.3,2529.2,0.79061]
[1748047599219,36.4649,2529.3,2527.3,0.26465952]
[1748047599220,0.79118,2527.4,2527.3,0.26465952]
[1748047599429,0.79159,2526.1,2526.0,3.28252593]
[1748047599619,3.2078,2526.1,2526.0,3.28252593]
[1748047599816,0.00593812,2526.3,2526.0,8.28252593]
[1748047600018,0.00593812,2526.3,2526.2,3.28252593]
[1748047600222,0.00593812,2526.3,2526.2,7.28187593]
[1748047600428,0.00593812,2526.3,2526.2,12.28187593]
[1748047600729,3.2078,2527.1,2526.2,11.49032593]
[1748047601025,36.197,2527.0,2526.6,0.7914]
[1748047601225,18.397,2527.2,2527.0,4.07382593]
[1748047601424,39.86,2527.3,2527.2,3.28252593]
[1748047601631,58.257,2527.3,2527.2,3.28252593]
[1748047602827,59.5781,2527.3,2527.2,3.28252593]
[1748047603419,60.36931,2527.3,2527.2,3.28252593]
[1748047603629,59.5781,2527.3,2527.2,3.28252593]
[1748047604325,60.36931,2527.3,2527.2,3.28252593]
[1748047604531,0.79127,2527.1,2527.0,0.00593812]
[1748047604828,3.99907,2527.1,2527.0,0.00593812]
[1748047605227,39.4098,2527.1,2527.0,0.00593812]
[1748047605529,39.4098,2527.1,2527.0,3.28846405]
[1748047605831,40.20107,2527.1,2527.0,3.28846405]
[1748047606027,39.4098,2527.1,2527.0,3.28846405]
[1748047606225,40.40412748,2527.1,2527.0,3.28846405]
[1748047606415,42.50629748,2527.1,2527.0,3.28846405]
[1748047606814,41.71502748,2527.1,2527.0,0.00593812]
[1748047607932,3.2078,2526.6,2524.7,3.2078]
[1748047608127,3.2078,2525.5,2524.3,0.31522476]
[1748047608329,3.2078,2524.9,2524.7,0.792]
[1748047608725,3.2078,2524.9,2524.8,1.3214]
[1748047609127,3.2078,2524.9,2524.8,3.28252593]
[1748047609326,0.792,2524.8,2524.2,0.79215]
[1748047609633,3.2078,2524.4,2524.3,2.10625]
[1748047609823,3.2078,2524.4,2524.3,4.59662593]
[1748047610430,4.582,2524.4,2524.3,4.59662593]
[1748047610625,5.37412,2524.4,2524.3,3.28252593]
[1748047610829,4.582,2524.4,2523.9,0.79226]
[1748047611027,3.2078,2524.1,2523.9,4.07479593]
[1748047611224,3.2078,2524.1,2522.4,4.36904385]
[1748047611430,3.2078,2524.1,2522.4,1.56684385]
[1748047611431,3.2078,2522.5,2522.4,1.56684385]
[1748047611635,42.5278,2522.5,2522.4,1.56684385]
[1748047611934,3.2078,2522.5,2522.4,1.56684385]
[1748047612426,29.7168,2522.5,2522.4,1.56684385]
[1748047612629,24.7168,2522.5,2522.3,3.11816991]
[1748047613033,0.79274,2522.4,2522.3,3.11816991]
[1748047613338,0.79306,2521.4,2521.3,6.08072361]
[1748047613541,44.63186,2521.4,2521.3,6.08072361]
[1748047613740,0.79318,2521.0,2520.9,10.15666635]
[1748047614030,0.79318,2521.0,2520.6,1.3399]
[1748047614031,3.2078,2521.0,2520.6,1.3399]
[1748047614227,3.2078,2520.7,2520.6,1.3399]
[1748047614431,3.2078,2521.0,2520.9,0.79322]
[1748047614735,3.2078,2521.3,2520.6,1.3399]
[1748047614929,3.2078,2521.0,2520.2,4.58499816]
[1748047615130,43.8478,2521.0,2520.3,4.5536]
[1748047615329,3.2078,2520.7,2520.3,1.3458]
[1748047615826,3.2078,2520.4,2520.3,1.3458]
[1748047616533,3.2078,2520.4,2520.3,2.1392]
[1748047616733,3.2078,2520.8,2520.4,0.79337]
[1748047616928,3.2078,2520.8,2520.5,1.3458]
[1748047617136,3.2078,2520.8,2520.5,2.13912]
[1748047617339,3.2078,2520.8,2520.5,1.3458]
[1748047618142,3.2078,2520.8,2520.5,2.13914]
[1748047618439,3.2078,2520.8,2520.6,0.79331]
[1748047618737,3.2078,2520.8,2520.7,1.3289]
[1748047619131,3.2078,2520.8,2520.7,2.12218]
[1748047619730,26.0398,2521.2,2520.7,6.3289]
[1748047619928,26.0398,2521.2,2520.8,1.3289]
[1748047620542,3.2078,2522.0,2521.9,0.7929]
[1748047620743,43.8858,2522.6,2521.6,3.2078]
[1748047620935,43.8858,2522.6,2521.3,3.2078]
[1748047620936,3.2078,2522.0,2521.3,3.2078]
[1748047621236,3.2078,2522.0,2521.9,0.7929]
[1748047621429,3.2078,2522.6,2521.9,3.2078]
[1748047621633,22.841,2522.7,2522.0,1.40705014]
[1748047621634,0.00595014,2522.5,2522.0,1.40705014]
[1748047621828,0.00595014,2522.5,2522.4,0.79274]
[1748047622743,3.2078,2522.6,2522.5,0.79271]
[1748047623133,26.0518,2523.0,2522.6,0.79266]
[1748047623332,26.0518,2523.0,2522.7,2.19375]
[1748047623638,26.0518,2523.0,2522.8,1.4011]
[1748047623843,26.0518,2523.0,2522.9,0.79259]
[1748047623844,22.844,2523.0,2522.9,0.79259]
[1748047624139,0.00595014,2523.2,2522.9,5.79257]
[1748047624336,0.00595014,2523.2,2523.0,1.3565]
[1748047624539,0.79252,2523.1,2523.0,1.3565]
[1748047624740,0.79847014,2523.2,2523.0,1.3565]
[1748047624940,0.79252,2523.1,2523.0,1.3565]
[1748047625240,0.79846014,2523.2,2523.0,1.3565]
[1748047625541,0.00595014,2523.2,2523.1,4.00032]
[1748047625737,3.21375014,2523.2,2523.0,1.3565]
[1748047625934,0.79252,2523.1,2523.0,1.3565]
[1748047626236,31.05775014,2523.2,2522.4,0.07549626]
[1748047626430,3.2078,2522.6,2522.5,1.3565]
[1748047626636,22.844,2522.6,2522.5,1.3565]
[1748047626835,26.0518,2522.6,2522.5,1.3565]
[1748047627644,3.2078,2523.0,2522.7,0.79263]
[1748047627942,3.2078,2523.0,2522.8,1.3008]
[1748047628337,3.2078,2523.0,2522.8,2.09341]
[1748047628536,3.2078,2523.0,2522.8,1.3008]
[1748047629342,3.2078,2523.0,2522.9,0.79259]
[1748047629542,22.85095014,2523.2,2523.1,0.79252]
[1748047630243,22.85095014,2523.2,2522.8,1.3008]
[1748047630448,0.00595014,2523.2,2523.1,0.79252]
[1748047632142,0.00595014,2523.2,2523.1,4.00032]
[1748047632443,0.00595014,2523.2,2523.0,0.79254]
[1748047632744,0.00595014,2523.2,2523.1,2.12322]
[1748047633636,2.34972372,2524.3,2523.1,9.5385]
[1748047633846,2.34972372,2524.3,2523.5,3.2078]
[1748047634044,3.2078,2524.1,2523.2,2.1978]
[1748047634245,0.79228,2523.9,2523.2,2.1978]
[1748047634444,3.2078,2524.1,2523.2,2.1978]
[1748047634640,0.00595014,2523.9,2523.7,0.79232]
[1748047634949,0.00595014,2523.9,2523.8,1.4168]
[1748047636345,0.00595014,2523.9,2523.8,5.4169]
[1748047636551,0.00595014,2523.9,2523.8,1.4168]
[1748047637249,1.09196928,2523.9,2523.8,1.4168]
[1748047638652,1.88423928,2523.9,2523.8,1.4168]
[1748047640650,0.7924,2523.5,2523.4,0.00595014]
[1748047641151,9.0002,2523.5,2523.4,0.00595014]
[1748047641750,4.0002,2523.5,2523.4,0.00595014]
[1748047642048,3.2078,2523.5,2523.4,0.00595014]
[1748047642252,27.13876928,2523.9,2523.7,0.79232]
[1748047642648,26.05275014,2523.9,2523.8,1.42159626]
[1748047642848,26.05275014,2523.9,2523.8,2.21389626]
[1748047643048,3.21375014,2523.9,2523.8,1.42159626]
[1748047643244,3.21375014,2523.9,2523.8,2.21389626]
[1748047643550,3.2078,2524.6,2523.8,6.42159626]
[1748047643756,2.34614881,2524.5,2524.2,3.2078]
[1748047643957,0.79212,2524.4,2524.3,1.3461]
[1748047644545,3.13825881,2524.5,2524.3,1.3461]
[1748047644745,2.34614881,2524.5,2524.2,3.2078]
[1748047644950,7.34614881,2524.5,2523.9,1.3461]
[1748047645152,2.34614881,2524.5,2523.9,1.3461]
[1748047645349,3.13824881,2524.5,2523.9,1.3461]
[1748047645650,4.19278694,2524.4,2524.1,3.2078]
[1748047645846,4.19278694,2524.4,2524.2,1.3666]
[1748047646049,3.40066694,2524.4,2524.2,1.3666]
[1748047646360,3.40066694,2524.4,2524.3,0.79215]
[1748047646858,3.40066694,2524.4,2524.2,2.15877]
[1748047647066,3.40066694,2524.4,2524.2,1.3666]
[1748047647351,2.34614881,2524.4,2524.3,1.3666]
[1748047647557,2.34614881,2524.4,2524.3,2.15875]
[1748047648655,0.00595014,2524.6,2524.5,0.79208]
[1748047648865,0.00595014,2524.6,2524.5,3.99988]
[1748047650559,1.03912788,2524.6,2524.5,3.99988]
[1748047650751,3.12819842,2524.9,2524.8,0.79199]
[1748047651057,3.12819842,2524.9,2524.7,0.79199]
[1748047651254,3.12819842,2524.9,2524.8,0.79199]
[1748047651853,3.12819842,2524.9,2524.8,3.99979]
[1748047652058,3.12819842,2524.9,2524.8,3.2078]
[1748047652360,3.12819842,2524.9,2524.8,3.99979]
[1748047652552,3.12819842,2524.9,2524.8,3.2078]
[1748047652959,0.79196,2524.9,2524.6,1.3906]
[1748047653158,2.09074,2525.0,2524.6,2.18265]
[1748047653371,0.79197,2524.9,2524.6,1.3906]
[1748047653658,1.2988,2524.8,2524.6,2.18265]
[1748047653958,1.2988,2524.8,2524.7,1.3906]
[1748047654761,0.79787014,2525.1,2524.7,2.18262]
[1748047655059,2.21017014,2525.1,2524.8,1.2939]
[1748047655854,2.21017014,2525.1,2524.8,1.36939626]
[1748047656055,0.79196,2524.9,2524.8,0.07549626]
[1748047657050,5.41797014,2525.1,2524.8,0.07549626]
[1748047657257,40.131,2525.0,2524.8,1.36939626]
[1748047657558,1.3864,2524.9,2524.8,1.36939626]
[1748047658160,1.3864,2524.9,2524.8,2.16138626]
[1748047658660,1.3864,2524.9,2524.8,1.36939626]
[1748047660060,40.131,2525.0,2524.8,2.16138626]
[1748047660262,40.92293,2525.0,2524.8,2.16138626]
[1748047660560,40.131,2525.0,2524.8,2.16138626]
[1748047660757,22.302,2525.0,2524.9,0.79196]
[1748047661061,22.302,2525.0,2524.9,1.3829]
[1748047661762,22.302,2525.0,2524.9,2.17486]
[1748047661962,2.12715014,2525.1,2524.9,1.3829]
[1748047662262,0.00595014,2525.1,2525.0,0.79193]
[1748047662664,0.00595014,2525.1,2525.0,3.99973]
[1748047663565,2.07822842,2525.4,2525.3,0.79183]
[1748047663757,0.98714695,2526.6,2525.4,1.97951]
[1748047664061,1.94538929,2526.4,2525.8,3.2078]
[1748047664253,1.94538929,2526.4,2526.0,0.79161]
[1748047664454,1.94538929,2526.4,2526.1,2.18658]
[1748047664654,1.94920681,2526.4,2526.1,1.395]
[1748047664862,0.66190681,2526.4,2526.3,0.79152]
[1748047665758,0.00381752,2526.4,2526.3,0.79152]
[1748047667665,0.00381752,2526.4,2526.2,1.395]
[1748047667964,1.28941752,2526.4,2526.2,1.395]
[1748047670766,1.28941752,2526.4,2526.2,2.18655]
[1748047670963,0.79158,2526.1,2526.0,0.00593824]
[1748047671866,1.2768,2526.2,2526.0,0.00593824]
[1748047672458,2.06837,2526.2,2526.0,0.00593824]
[1748047673059,1.2768,2526.2,2526.0,0.00593824]